bitfinex-derivatives/quotes_BTCF0:USTF0_20230401
["timestamp","ask_amount","ask_price","bid_price","bid_amount"]
[1680363221388,0.0705,28379.0,28378.0,0.08856446]
[1680363221781,0.0705,28379.0,28378.0,0.32165986]
[1680363229380,0.0705,28382.0,28378.0,0.6581954]
[1680363229583,0.0705,28382.0,28381.0,0.13360747]
[1680363230683,0.0795,28382.0,28381.0,0.13460747]
[1680363233487,0.0795,28382.0,28381.0,0.13441484]
[1680363235894,0.0795,28382.0,28381.0,0.07120737]
[1680363236895,0.009,28382.0,28381.0,0.0715]
[1680363241994,0.05377825,28384.0,28382.0,0.05]
[1680363242304,0.1205,28386.0,28383.0,0.3712]
[1680363242502,0.0705,28386.0,28385.0,0.11260177]
[1680363242699,0.0705,28386.0,28385.0,0.04210177]
[1680363243196,0.1205,28386.0,28385.0,0.04210177]
[1680363244403,0.1205,28386.0,28385.0,0.04410177]
[1680363245002,0.0705,28386.0,28385.0,0.04410177]
[1680363249000,0.0705,28386.0,28385.0,0.09410177]
[1680363249304,0.0705,28386.0,28385.0,0.11515266]
[1680363250198,0.0705,28386.0,28385.0,0.09405428]
[1680363250398,0.0705,28386.0,28385.0,0.052]
[1680363251401,0.0705,28389.0,28385.0,0.18555266]
[1680363251703,0.0705,28389.0,28388.0,0.0705]
[1680363251899,0.0705,28389.0,28388.0,0.1205]
[1680363252707,0.0705,28389.0,28388.0,0.0705]
[1680363252906,0.0705,28389.0,28388.0,0.1225]
[1680363254110,0.1233231,28392.0,28388.0,0.1224]
[1680363254403,0.1233231,28392.0,28391.0,0.0703]
[1680363254807,0.1233231,28392.0,28391.0,0.1203]
[1680363255399,0.1233231,28392.0,28391.0,0.1223]
[1680363256403,0.0529231,28392.0,28391.0,0.1224]
[1680363256709,0.3007,28393.0,28391.0,0.1224]
[1680363256909,0.3706,28393.0,28392.0,0.07]
[1680363258505,0.3706,28393.0,28392.0,0.072]
[1680363262610,0.37044085,28393.0,28392.0,0.072]
[1680363264010,0.44084085,28393.0,28392.0,0.002]
[1680363265305,0.05,28392.0,28390.0,0.3007]
[1680363265511,0.0702,28391.0,28390.0,0.3007]
[1680363267006,0.0722,28391.0,28390.0,0.3027]
[1680363267515,0.0722,28391.0,28390.0,0.002]
[1680363271016,0.1238877,28391.0,28390.0,0.002]
[1680363283129,0.4245877,28391.0,28390.0,0.002]
[1680363286623,0.4944877,28391.0,28390.0,0.002]
[1680363296938,0.6351877,28391.0,28390.0,0.002]
[1680363302034,0.9358877,28391.0,28390.0,0.002]
[1680363304345,0.05,28390.0,28387.0,0.04205251]
[1680363304540,0.4407,28388.0,28386.0,0.04205251]
[1680363304737,0.0704,28387.0,28386.0,0.04211541]
[1680363304943,0.1204,28387.0,28386.0,0.04211541]
[1680363305240,0.1204,28387.0,28385.0,0.06315266]
[1680363305441,0.1205,28386.0,28385.0,0.06315266]
[1680363306138,0.1205,28386.0,28385.0,0.06415266]
[1680363306640,0.1215,28386.0,28385.0,0.07015266]
[1680363306947,0.05,28385.0,28382.0,0.04213057]
[1680363307242,0.4415,28383.0,28382.0,0.04213057]
[1680363307544,0.4415,28383.0,28381.0,0.04213057]
[1680363307744,0.1904,28382.0,28381.0,0.04213057]
[1680363308638,0.05,28381.0,28380.0,0.04213057]
[1680363308839,0.19,28381.0,28380.0,0.04213057]
[1680363309236,0.19,28381.0,28379.0,0.06319586]
[1680363309237,0.19,28381.0,28379.0,0.04213057]
[1680363309442,0.1205,28380.0,28379.0,0.04213057]
[1680363309943,0.191,28380.0,28379.0,0.04213057]
[1680363310445,0.4917,28380.0,28379.0,0.04213057]
[1680363310741,0.4917,28380.0,28379.0,0.02566086]
[1680363311345,0.4947,28380.0,28377.0,0.11319586]
[1680363311548,0.14,28378.0,28377.0,0.06319586]
[1680363312736,0.143,28378.0,28377.0,0.06319586]
[1680363314238,0.143,28378.0,28376.0,0.06319586]
[1680363314443,0.0729,28378.0,28377.0,0.06319586]
[1680363314643,0.1434,28378.0,28376.0,0.06319586]
[1680363314841,0.1201,28377.0,28375.0,0.36389586]
[1680363315041,0.1205,28376.0,28375.0,0.36389586]
[1680363315845,0.1235,28376.0,28375.0,0.36389586]
[1680363316747,0.0735,28376.0,28375.0,0.36389586]
[1680363317248,0.0735,28376.0,28375.0,0.3007]
[1680363317635,0.0735,28376.0,28375.0,0.36389586]
[1680363318038,0.0735,28376.0,28375.0,0.3007]
[1680363321747,0.0705,28376.0,28375.0,0.3007]
[1680363321952,0.0735,28376.0,28375.0,0.3007]
[1680363324054,0.0735,28376.0,28372.0,0.43409586]
[1680363324253,0.0701,28374.0,28372.0,0.43409586]
[1680363324453,0.05,28373.0,28372.0,0.43409586]
[1680363324650,0.0701,28374.0,28372.0,0.43409586]
[1680363325256,0.0705,28373.0,28372.0,0.43439586]
[1680363326655,0.0735,28373.0,28372.0,0.43439586]
[1680363327059,0.0735,28373.0,28372.0,0.36389586]
[1680363329358,0.003,28373.0,28372.0,0.43419586]
[1680363337061,0.0735,28373.0,28372.0,0.36389586]
[1680363339658,0.1434,28373.0,28372.0,0.36389586]
[1680363340463,0.1424,28373.0,28372.0,0.36389586]
[1680363340657,0.1404,28373.0,28372.0,0.36389586]
[1680363340863,0.1424,28373.0,28372.0,0.36389586]
[1680363341758,0.1424,28373.0,28372.0,0.3007]
[1680363342159,0.1424,28373.0,28372.0,0.36389586]
[1680363343863,0.1424,28373.0,28372.0,0.3007]
[1680363344261,0.1424,28373.0,28372.0,0.36389586]
[1680363346858,0.1428,28373.0,28372.0,0.36389586]
[1680363348770,0.1428,28373.0,28372.0,0.3007]
[1680363348971,0.1428,28373.0,28372.0,0.36389586]
[1680363349169,0.1428,28373.0,28372.0,0.06319586]
[1680363351369,0.1428,28373.0,28371.0,0.08426115]
[1680363351567,0.0725,28373.0,28372.0,0.43496115]
[1680363351772,0.1428,28373.0,28372.0,0.66809799]
[1680363352570,0.1428,28373.0,28372.0,0.61809799]
[1680363353165,0.1408,28373.0,28372.0,0.61809799]
[1680363353371,0.0723,28373.0,28372.0,0.61809799]
[1680363359375,0.0723,28373.0,28372.0,0.53383684]
[1680363359773,0.0723,28373.0,28372.0,0.23313684]
[1680363359970,0.0723,28373.0,28372.0,0.3007]
[1680363360175,0.0723,28373.0,28372.0,0.53383684]
[1680363360575,0.0723,28373.0,28372.0,0.61823225]
[1680363361279,0.0723,28373.0,28372.0,0.53383684]
[1680363361579,0.0723,28373.0,28372.0,0.61823937]
[1680363361979,0.0723,28373.0,28372.0,0.53383684]
[1680363362374,0.0723,28373.0,28372.0,0.61822198]
[1680363363378,0.0723,28373.0,28372.0,0.31752198]
[1680363363780,0.0723,28373.0,28372.0,0.08438514]
[1680363365977,0.0723,28373.0,28372.0,0.23313684]
[1680363366379,0.0723,28373.0,28371.0,0.33844169]
[1680363366675,0.002,28373.0,28372.0,0.08440587]
[1680363366883,0.0721,28373.0,28372.0,0.08440587]
[1680363367584,0.0721,28373.0,28372.0,0.23313684]
[1680363367879,0.0721,28373.0,28371.0,0.33844169]
[1680363368087,0.002,28373.0,28372.0,0.23313684]
[1680363368389,0.0722,28373.0,28372.0,0.23313684]
[1680363368889,0.0722,28373.0,28371.0,0.33844169]
[1680363369085,0.0701,28372.0,28371.0,0.33844169]
[1680363370586,0.0701,28372.0,28371.0,0.33833736]
[1680363370789,0.0731,28372.0,28371.0,0.33833736]
[1680363375992,0.0731,28372.0,28371.0,0.23313684]
[1680363376798,0.0701,28372.0,28371.0,0.28313684]
[1680363377394,0.0711,28372.0,28371.0,0.23313684]
[1680363379791,0.0711,28372.0,28370.0,0.28313684]
[1680363379993,0.001,28372.0,28371.0,0.28313684]
[1680363380193,0.0711,28372.0,28371.0,0.28313684]
[1680363381100,0.0711,28372.0,28371.0,0.23313684]
[1680363390610,0.0711,28372.0,28371.0,0.33878582]
[1680363394225,0.0711,28372.0,28371.0,0.10564898]
[1680363400510,0.0711,28372.0,28370.0,0.33878582]
[1680363400716,0.051,28372.0,28371.0,0.23313684]
[1680363400915,0.1211,28372.0,28371.0,0.23313684]
[1680363401109,0.1211,28372.0,28370.0,0.33878582]
[1680363401311,0.0705,28371.0,28370.0,0.33878582]
[1680363403025,0.0725,28371.0,28370.0,0.33878582]
[1680363406524,0.143,28371.0,28370.0,0.33878582]
[1680363408825,0.143,28371.0,28370.0,0.23313684]
[1680363409225,0.0725,28371.0,28370.0,0.40898582]
[1680363409416,0.002,28371.0,28370.0,0.35333684]
[1680363411928,0.002,28371.0,28370.0,0.65403684]
[1680363412918,0.002,28371.0,28370.0,0.60403684]
[1680363413123,0.002,28371.0,28370.0,0.53383684]
[1680363413124,0.0722,28371.0,28370.0,0.53383684]
[1680363413923,0.0722,28371.0,28370.0,0.63948745]
[1680363420624,0.0722,28371.0,28370.0,0.63936255]
[1680363424039,0.0722,28371.0,28370.0,0.33866255]
[1680363424230,0.0722,28371.0,28370.0,0.10565061]
[1680363426136,0.1427,28371.0,28369.0,0.10565061]
[1680363426338,0.002,28371.0,28370.0,0.08454554]
[1680363426535,0.1424,28371.0,28370.0,0.08454554]
[1680363426735,0.1924,28371.0,28370.0,0.08454554]
[1680363430041,0.191,28370.0,28369.0,0.08454554]
[1680363430242,0.3313,28370.0,28369.0,0.08454554]
[1680363432244,0.3343,28370.0,28369.0,0.08454554]
[1680363433442,0.3343,28370.0,28368.0,0.08454554]
[1680363433642,0.1909,28369.0,28368.0,0.08454554]
[1680363435239,0.1939,28369.0,28368.0,0.08454554]
[1680363442244,0.1939,28369.0,28367.0,0.08454554]
[1680363442442,0.1403,28368.0,28366.0,0.15565061]
[1680363442644,0.053,28369.0,28367.0,0.23318216]
[1680363442843,0.1403,28368.0,28366.0,0.10565061]
[1680363443146,0.191,28367.0,28366.0,0.33883264]
[1680363444245,0.141,28367.0,28366.0,0.33883264]
[1680363444943,0.144,28367.0,28366.0,0.33883264]
[1680363445347,0.144,28367.0,28366.0,0.10565061]
[1680363447048,0.0735,28367.0,28366.0,0.10565061]
[1680363448450,0.0735,28367.0,28365.0,0.33883264]
[1680363448646,0.003,28367.0,28366.0,0.23318203]
[1680363448839,0.2848,28367.0,28366.0,0.23318203]
[1680363449040,0.2848,28367.0,28366.0,0.31765489]
[1680363449550,0.2848,28367.0,28365.0,0.08447286]
[1680363449746,0.1403,28366.0,28365.0,0.31766551]
[1680363449944,0.1903,28366.0,28365.0,0.31766551]
[1680363450850,0.1403,28366.0,28365.0,0.31766551]
[1680363451054,0.0699,28366.0,28365.0,0.23319265]
[1680363451549,0.0699,28366.0,28365.0,0.28319265]
[1680363453147,0.0729,28366.0,28365.0,0.28319265]
[1680363454149,0.0729,28366.0,28365.0,0.23319265]
[1680363454745,0.0729,28366.0,28365.0,0.31763841]
[1680363456558,0.144,28366.0,28365.0,0.31763841]
[1680363459659,0.0735,28366.0,28365.0,0.31763841]
[1680363463054,0.0735,28366.0,28365.0,0.36763841]
[1680363463457,0.0735,28366.0,28365.0,0.23319265]
[1680363464951,0.0735,28366.0,28365.0,0.3176704]
[1680363467351,0.1235,28366.0,28365.0,0.3176704]
[1680363468060,0.1235,28366.0,28365.0,0.08447775]
[1680363468665,0.1235,28366.0,28365.0,0.08431484]
[1680363470962,0.1235,28366.0,28365.0,0.23319265]
[1680363471161,0.1235,28366.0,28364.0,0.33884326]
[1680363471361,0.0705,28365.0,28364.0,0.33884326]
[1680363472565,0.0705,28365.0,28364.0,0.23319265]
[1680363472760,0.0705,28365.0,28364.0,0.33884326]
[1680363473967,0.0735,28365.0,28364.0,0.33884326]
[1680363474364,0.1438,28365.0,28364.0,0.33884326]
[1680363474768,0.1438,28365.0,28364.0,0.23319265]
[1680363474965,0.1438,28365.0,28364.0,0.33884326]
[1680363475366,0.1438,28365.0,28364.0,0.23319265]
[1680363489573,0.0733,28365.0,28364.0,0.23319265]
[1680363489773,0.0733,28365.0,28364.0,0.28319265]
[1680363492579,0.0733,28365.0,28364.0,0.23319265]
[1680363492780,0.0733,28365.0,28364.0,0.28319265]
[1680363494883,0.0733,28365.0,28364.0,0.58389265]
[1680363495076,0.0733,28365.0,28364.0,0.53389265]
[1680363503485,0.0733,28365.0,28364.0,0.23319265]
[1680363503688,0.0733,28365.0,28364.0,0.3007]
[1680363503986,0.0733,28365.0,28364.0,0.58389265]
[1680363504385,0.0733,28365.0,28364.0,0.53389265]
[1680363515194,0.1438,28365.0,28364.0,0.53389265]
[1680363515393,0.1438,28365.0,28364.0,0.61845874]
[1680363515787,0.4445,28365.0,28364.0,0.31775874]
[1680363515988,0.141,28364.0,28363.0,0.08456609]
[1680363516193,0.3313,28364.0,28363.0,0.08456609]
[1680363516994,0.331,28364.0,28363.0,0.08456609]
[1680363517900,0.334,28364.0,28363.0,0.08456609]
[1680363520496,0.334,28364.0,28362.0,0.08456609]
[1680363520697,0.1906,28363.0,28362.0,0.08456609]
[1680363521990,0.1936,28363.0,28362.0,0.08440371]
[1680363522199,0.1936,28363.0,28362.0,0.3176261]
[1680363522395,0.1936,28363.0,28362.0,0.08440371]
[1680363524098,0.1436,28363.0,28362.0,0.08440371]
[1680363524491,0.1436,28363.0,28362.0,0.3176261]
[1680363539800,0.1436,28363.0,28362.0,0.08440371]
[1680363540006,0.1436,28363.0,28362.0,0.3176261]
[1680363541007,0.1936,28363.0,28362.0,0.08440371]
[1680363542207,0.1936,28363.0,28360.0,0.40635061]
[1680363542505,0.053,28363.0,28361.0,0.23322708]
[1680363542704,0.0705,28362.0,28361.0,0.23322708]
[1680363544208,0.0704,28361.0,28360.0,0.10565061]
[1680363544406,0.1909,28361.0,28360.0,0.10565061]
[1680363545203,0.1939,28361.0,28360.0,0.10565061]
[1680363550408,0.1939,28361.0,28359.0,0.33887772]
[1680363550610,0.1234,28361.0,28360.0,0.33887772]
[1680363550811,0.1436,28361.0,28360.0,0.33887772]
[1680363551206,0.1436,28361.0,28360.0,0.10565061]
[1680363551407,0.1436,28361.0,28360.0,0.23322711]
[1680363551608,0.1436,28361.0,28359.0,0.33887772]
[1680363551803,0.0734,28361.0,28360.0,0.23322711]
[1680363552004,0.1439,28361.0,28359.0,0.33887772]
[1680363552214,0.0734,28361.0,28360.0,0.23322711]
[1680363552411,0.1439,28361.0,28359.0,0.33887772]
[1680363552711,0.0701,28360.0,28359.0,0.33887772]
[1680363552911,0.1201,28360.0,28359.0,0.33887772]
[1680363553105,0.0701,28360.0,28359.0,0.33887772]
[1680363553713,0.0731,28360.0,28359.0,0.33887772]
[1680363554110,0.0731,28360.0,28359.0,0.23322711]
[1680363554311,0.0731,28360.0,28359.0,0.33889576]
[1680363554614,0.0731,28360.0,28359.0,0.23322711]
[1680363556114,0.0731,28360.0,28359.0,0.28322711]
[1680363556616,0.0735,28360.0,28359.0,0.58392711]
[1680363557815,0.01435514,28360.0,28359.0,0.58392711]
[1680363558012,0.0701,28363.0,28359.0,0.65442711]
[1680363558211,0.0701,28363.0,28362.0,0.3709]
[1680363558513,0.0701,28363.0,28362.0,0.60412711]
[1680363559218,0.0731,28363.0,28362.0,0.60612711]
[1680363565913,0.003,28363.0,28362.0,0.60612711]
[1680363567122,0.003,28363.0,28362.0,0.60642711]
[1680363567516,0.003,28363.0,28362.0,0.71204832]
[1680363567822,0.003,28363.0,28362.0,0.60642711]
[1680363570021,0.003,28363.0,28362.0,0.71203334]
[1680363570223,0.003,28363.0,28362.0,0.60642711]
[1680363577024,0.003,28363.0,28362.0,0.67652711]
[1680363579024,0.003,28363.0,28362.0,0.7820969]
[1680363579222,0.003,28363.0,28362.0,0.67652711]
[1680363579426,0.003,28363.0,28362.0,0.78209591]
[1680363579727,0.003,28363.0,28362.0,0.67652711]
[1680363580329,0.003,28363.0,28362.0,0.78209233]
[1680363581319,0.0732,28363.0,28362.0,0.71179233]
[1680363583524,0.0732,28363.0,28362.0,0.60622711]
[1680363583720,0.0732,28363.0,28362.0,0.71179315]
[1680363584120,0.0732,28363.0,28362.0,0.71179118]
[1680363584431,0.0732,28363.0,28362.0,0.71179117]
[1680363586825,0.0732,28363.0,28362.0,0.41109117]
[1680363587026,0.0735,28363.0,28362.0,1.01269117]
[1680363588635,0.0735,28363.0,28362.0,0.41129117]
[1680363588935,0.0735,28363.0,28362.0,1.01269117]
[1680363592844,0.0735,28363.0,28362.0,1.01270872]
[1680363593139,0.0735,28363.0,28362.0,0.90712711]
[1680363593335,0.0735,28363.0,28362.0,1.01270873]
[1680363593537,0.0735,28363.0,28362.0,1.01270868]
[1680363593736,0.0735,28363.0,28362.0,0.90712711]
[1680363594037,0.0735,28363.0,28362.0,1.01270859]
[1680363594235,0.0735,28363.0,28362.0,0.90712711]
[1680363596934,0.0734,28363.0,28362.0,0.83662711]
[1680363598540,0.0705,28365.0,28363.0,0.05810432]
[1680363598739,0.0705,28365.0,28364.0,0.33885862]
[1680363600343,0.0725,28365.0,28364.0,0.34785862]
[1680363600543,0.0725,28365.0,28364.0,0.3478899]
[1680363602041,0.0715,28365.0,28364.0,0.3468899]
[1680363602438,0.0715,28365.0,28364.0,0.24122711]
[1680363602637,0.0715,28365.0,28364.0,0.29122711]
[1680363603043,0.0725,28365.0,28364.0,0.29122711]
[1680363605043,0.0722,28365.0,28364.0,0.29122711]
[1680363607047,0.002,28365.0,28364.0,0.36152711]
[1680363609750,0.12239614,28372.0,28365.0,0.05]
[1680363609951,0.0705,28372.0,28371.0,0.3705]
[1680363610147,0.0705,28372.0,28371.0,0.48389871]
[1680363611052,0.0965,28372.0,28371.0,0.48489871]
[1680363611645,0.0965,28372.0,28371.0,0.43489871]
[1680363615757,0.0965,28372.0,28371.0,0.3715]
[1680363616851,0.0965,28372.0,28371.0,0.3017]
[1680363617056,0.0962,28372.0,28371.0,0.3717]
[1680363617858,0.0962,28372.0,28371.0,0.41392163]
[1680363618858,0.0962,28372.0,28371.0,0.3717]
[1680363619055,0.0962,28372.0,28371.0,0.43509871]
[1680363619267,0.0701,28376.0,28371.0,0.4426]
[1680363619450,0.0701,28376.0,28375.0,0.34291531]
[1680363620161,0.0701,28376.0,28375.0,0.3007]
[1680363620362,0.0701,28376.0,28375.0,0.34291531]
[1680363620762,0.8598,28380.0,28375.0,0.48341531]
[1680363620962,0.0704,28380.0,28379.0,0.3707]
[1680363622062,0.0714,28380.0,28379.0,0.3727]
[1680363623759,0.001,28380.0,28379.0,0.3729]
[1680363623963,0.0705,28383.0,28380.0,0.05]
[1680363624164,0.12236406,28383.0,28382.0,0.3007]
[1680363624459,0.12236406,28383.0,28382.0,0.3507]
[1680363624853,0.12236406,28383.0,28382.0,0.3007]
[1680363625059,0.12236406,28383.0,28382.0,0.3027]
[1680363625454,0.12236406,28383.0,28382.0,0.3527]
[1680363625654,0.0705,28383.0,28382.0,0.3527]
[1680363625864,0.0705,28386.0,28382.0,0.4229]
[1680363626056,0.0704,28386.0,28385.0,0.0704]
[1680363626460,0.0704,28386.0,28385.0,0.3711]
[1680363627159,0.0705,28386.0,28385.0,0.3007]
[1680363627363,0.0705,28386.0,28385.0,0.3027]
[1680363628765,0.0705,28386.0,28385.0,0.3017]
[1680363629967,0.0705,28386.0,28385.0,0.3517]
[1680363636272,0.0701,28387.0,28385.0,0.4222]
[1680363636472,0.0701,28387.0,28386.0,0.12]
[1680363636862,0.1201,28390.0,28386.0,0.1205]
[1680363637067,0.0705,28389.0,28388.0,0.3712]
[1680363639072,0.0705,28389.0,28388.0,0.3732]
[1680363640069,0.0705,28389.0,28388.0,0.3027]
[1680363640273,0.1205,28389.0,28388.0,0.002]
[1680363644882,0.1205,28389.0,28388.0,0.3027]
[1680363645477,0.0705,28389.0,28388.0,0.3027]
[1680363648686,0.1205,28389.0,28388.0,0.3027]
[1680363649284,0.1205,28389.0,28388.0,0.002]
[1680363656988,0.191,28389.0,28388.0,0.002]
[1680363658297,0.05,28388.0,28386.0,0.3007]
[1680363658493,0.0701,28387.0,28386.0,0.3007]
[1680363659790,0.1406,28387.0,28383.0,0.3007]
[1680363660091,0.1403,28384.0,28383.0,0.3007]
[1680363660888,0.1403,28384.0,28383.0,0.3037]
[1680363663297,0.1403,28384.0,28383.0,0.003]
[1680363663898,0.19240781,28384.0,28383.0,0.003]
[1680363664496,0.24240781,28384.0,28383.0,0.003]
[1680363664702,0.1903,28384.0,28383.0,0.003]
[1680363665704,0.491,28384.0,28383.0,0.003]
[1680363670405,0.441,28384.0,28383.0,0.003]
[1680363673510,0.05,28383.0,28381.0,0.04221531]
[1680363673707,0.0701,28382.0,28381.0,0.04221531]
[1680363674610,0.0701,28382.0,28381.0,0.05221531]
[1680363675607,0.0701,28382.0,28381.0,0.05821531]
[1680363675809,0.0701,28382.0,28381.0,0.10821531]
[1680363676004,0.0704,28383.0,28381.0,0.1365]
[1680363676310,0.0704,28383.0,28382.0,0.16238813]
[1680363676912,0.0701,28385.0,28382.0,0.16268813]
[1680363677112,0.0701,28385.0,28384.0,0.05]
[1680363678719,0.0731,28385.0,28384.0,0.05]
[1680363678911,0.0731,28385.0,28384.0,0.3507]
[1680363680018,0.0731,28385.0,28384.0,0.3007]
[1680363682613,0.0731,28385.0,28384.0,0.3712]
[1680363682813,0.003,28385.0,28384.0,0.41338813]
[1680363683016,0.003,28385.0,28384.0,0.43452297]
[1680363683218,0.003,28385.0,28384.0,0.3712]
[1680363686622,0.003,28385.0,28384.0,0.43443093]
[1680363686919,0.003,28385.0,28384.0,0.50493093]
[1680363688019,0.003,28385.0,28384.0,0.4417]
[1680363688215,0.003,28385.0,28384.0,0.50492295]
[1680363689424,0.0705,28389.0,28385.0,0.05]
[1680363689628,0.0705,28389.0,28388.0,0.3712]
[1680363690822,0.0725,28389.0,28388.0,0.3732]
[1680363692827,0.0705,28392.0,28388.0,0.3731]
[1680363693022,0.0705,28392.0,28391.0,0.3712]
[1680363694428,0.0705,28392.0,28391.0,0.3732]
[1680363694929,0.1205,28392.0,28391.0,0.3732]
[1680363695827,0.1205,28392.0,28391.0,0.0725]
[1680363696019,0.1205,28392.0,28391.0,0.3732]
[1680363696827,0.1906,28392.0,28391.0,0.002]
[1680363697023,0.1204,28392.0,28391.0,0.002]
[1680363700925,0.1909,28392.0,28391.0,0.002]
[1680363701930,0.3319,28392.0,28391.0,0.002]
[1680363703432,0.6326,28392.0,28391.0,0.002]
[1680363703835,0.05,28391.0,28386.0,0.3507]
[1680363704133,0.0701,28387.0,28386.0,0.3007]
[1680363705635,0.0721,28387.0,28386.0,0.3007]
[1680363708540,0.0721,28387.0,28386.0,0.3507]
[1680363709038,0.0721,28387.0,28386.0,0.3007]
[1680363709237,0.0721,28387.0,28385.0,0.04211495]
[1680363709438,0.0704,28386.0,28385.0,0.04211495]
[1680363709639,0.0704,28386.0,28385.0,0.09211495]
[1680363710640,0.0704,28386.0,28385.0,0.04211495]
[1680363710841,0.0704,28386.0,28385.0,0.04511495]
[1680363711141,0.0704,28386.0,28385.0,0.09511495]
[1680363711438,0.0704,28386.0,28385.0,0.04511495]
[1680363711636,0.1409,28386.0,28385.0,0.003]
[1680363711834,0.1909,28386.0,28385.0,0.003]
[1680363712935,0.003,28385.0,28384.0,0.06322295]
[1680363713139,0.3337,28385.0,28384.0,0.01786781]
[1680363714248,0.3337,28385.0,28384.0,0.02786781]
[1680363714643,0.3337,28385.0,28384.0,0.01786781]
[1680363714843,0.3337,28385.0,28384.0,0.01886781]
[1680363714844,0.3387,28385.0,28384.0,0.01886781]
[1680363716250,0.9401,28385.0,28384.0,0.01886781]
[1680363716950,1.0815,28385.0,28384.0,0.01886781]
[1680363717850,1.1344057,28385.0,28384.0,0.01886781]
[1680363718050,0.5330057,28385.0,28384.0,0.01886781]
[1680363718245,1.1344057,28385.0,28384.0,0.01886781]
[1680363719152,0.05,28384.0,28378.0,0.36387242]
[1680363719351,0.1403,28379.0,28378.0,0.36387242]
[1680363719748,0.0698,28379.0,28378.0,0.36387242]
[1680363720148,0.0698,28379.0,28378.0,0.38687242]
[1680363720551,0.0705,28381.0,28378.0,0.47843162]
[1680363720751,0.0705,28381.0,28380.0,0.13357464]
[1680363721148,0.0705,28381.0,28380.0,0.1204]
[1680363722050,0.0705,28381.0,28380.0,0.1294]
[1680363722847,0.0705,28381.0,28380.0,0.21393162]
[1680363723053,0.0705,28381.0,28380.0,0.1294]
[1680363723954,0.0705,28381.0,28380.0,0.21393162]
[1680363725557,0.0705,28381.0,28380.0,0.44698189]
[1680363726852,0.0705,28381.0,28380.0,0.44688189]
[1680363727058,0.0701,28382.0,28380.0,0.44688189]
[1680363727259,0.0701,28382.0,28381.0,0.4211]
[1680363729056,0.0701,28382.0,28381.0,0.1204]
[1680363729257,0.0701,28382.0,28381.0,0.7218]
[1680363729657,0.0701,28382.0,28381.0,0.7248]
[1680363732959,0.0701,28382.0,28381.0,0.80933162]
[1680363733561,0.0701,28382.0,28381.0,0.7248]
[1680363734257,0.0701,28382.0,28381.0,0.6748]
[1680363734964,0.0701,28382.0,28381.0,0.73799606]
[1680363735360,0.0701,28382.0,28381.0,0.73799375]
[1680363735661,0.0701,28382.0,28381.0,0.3741]
[1680363736058,0.0701,28382.0,28381.0,0.43729575]
[1680363736855,0.0704,28382.0,28381.0,0.36689575]
[1680363737063,0.0704,28382.0,28381.0,0.3037]
[1680363737663,0.0704,28382.0,28381.0,0.3537]
[1680363737863,0.0704,28382.0,28381.0,0.053]
[1680363738064,0.0704,28382.0,28381.0,0.6544]
[1680363738270,0.0704,28382.0,28381.0,0.6044]
[1680363739561,0.0704,28382.0,28381.0,0.36690499]
[1680363739760,0.0704,28382.0,28381.0,0.003]
[1680363751074,0.0704,28382.0,28381.0,0.06620499]
[1680363751570,0.0704,28382.0,28381.0,0.003]
[1680363753575,0.0704,28382.0,28381.0,0.06620499]
[1680363756779,0.0704,28382.0,28381.0,0.36690499]
[1680363757376,0.0704,28382.0,28381.0,0.3037]
[1680363757977,0.0704,28382.0,28381.0,0.36695325]
[1680363763190,0.0704,28382.0,28381.0,0.3037]
[1680363763495,0.0704,28382.0,28381.0,0.67129131]
[1680363763694,0.0704,28382.0,28381.0,0.43823162]
[1680363765486,0.0704,28382.0,28381.0,0.6712914]
[1680363766600,0.0704,28382.0,28381.0,0.6212914]
[1680363766986,0.0705,28382.0,28381.0,0.6212914]
[1680363767294,0.0699,28382.0,28381.0,0.3037]
[1680363768588,0.0699,28382.0,28381.0,0.30347537]
[1680363769593,0.0699,28382.0,28381.0,0.00277537]
[1680363777899,0.1404,28382.0,28381.0,0.00277537]
[1680363778097,0.1404,28382.0,28381.0,0.06609076]
[1680363780699,0.4411,28382.0,28381.0,0.06609076]
[1680363783004,0.4411,28382.0,28381.0,0.00277537]
[1680363783800,0.4411,28382.0,28381.0,0.06609076]
[1680363784203,0.4411,28382.0,28381.0,0.00277537]
[1680363789406,0.5824,28382.0,28381.0,0.00277537]
[1680363789609,0.5824,28382.0,28381.0,5.37e-06]
[1680363789905,0.05,28381.0,28377.0,0.06331539]
[1680363790098,0.2823,28378.0,28377.0,0.06331539]
[1680363790304,0.3323,28378.0,28377.0,0.06331539]
[1680363790606,0.3323,28378.0,28376.0,0.06331539]
[1680363790912,0.19,28377.0,28376.0,0.06331539]
[1680363791299,0.19,28377.0,28375.0,0.06331539]
[1680363791504,0.141,28376.0,28375.0,0.06331539]
[1680363793106,0.142,28376.0,28375.0,0.09131539]
[1680363794007,0.142,28376.0,28375.0,0.028]
[1680363794609,0.05,28375.0,28374.0,0.06331539]
[1680363794911,0.1904,28375.0,28374.0,0.06331539]
[1680363796017,0.1924,28375.0,28374.0,0.06431539]
[1680363796313,0.1424,28375.0,28374.0,0.06431539]
[1680363796908,0.2834,28375.0,28374.0,0.06431539]
[1680363798015,0.2834,28375.0,28374.0,0.001]
[1680363806417,0.0719,28375.0,28374.0,0.001]
[1680363806812,0.0719,28375.0,28374.0,0.051]
[1680363807013,0.0719,28375.0,28374.0,0.11431539]
[1680363807218,0.002,28375.0,28374.0,0.18481539]
[1680363807523,0.002,28375.0,28374.0,0.1846169]
[1680363807719,0.0705,28376.0,28375.0,0.05]
[1680363807923,0.0705,28376.0,28375.0,0.41381274]
[1680363808522,0.0715,28376.0,28375.0,0.41581274]
[1680363809323,0.0715,28376.0,28375.0,0.3527]
[1680363810925,0.0715,28376.0,28375.0,0.3027]
[1680363813123,0.0715,28376.0,28375.0,0.36582638]
[1680363813324,0.0715,28376.0,28375.0,0.3027]
[1680363815631,0.0715,28376.0,28375.0,0.36583176]